fUSD/lending_fUSD_20251115
["ID","MTS","AMOUNT","RATE_DAILY","PERIOD"]
[393999903,1763172641011,-150.0,0.00017998,2]
[393999905,1763172641020,-150.131,0.00017998,2]
[393999907,1763172641029,-150.029,0.00017998,2]
[393999909,1763172641040,-150.0,0.00017998,2]
[393999911,1763172641049,-150.11,0.00017998,2]
[393999913,1763172641059,-1318.0,0.00017998,2]
[393999915,1763172641068,-3430.0,0.00017998,2]
[393999918,1763172641077,-575.0,0.00017998,2]
[393999919,1763172641087,-608.0,0.00017998,2]
[393999921,1763172641096,-1002.0323,0.00017999,2]
[393999923,1763172641106,-1355.0,0.00018,2]
[393999925,1763172641115,-2682047.49977115,0.00018,2]
[393999927,1763172641124,-417445.98388563,0.00018,2]
[393999930,1763172641136,-32745.42025123,0.00018,2]
[393999932,1763172641147,-28703.44614917,0.00018,2]
[393999934,1763172641158,-3789.41181935,0.00018,2]
[393999936,1763172641169,-21236.54811501,0.00018,2]
[393999938,1763172641180,-4348.12435315,0.00018,2]
[393999941,1763172641202,-743.95939113,0.00018,2]
[393999944,1763172641217,-785.36920088,0.00018,2]
[393999969,1763172641446,-6040.21632456,0.00018,2]
[394000180,1763172643419,-383.84053884,0.00017662,2]
[394000182,1763172643428,-248.46215311,0.00017662,2]
[394000183,1763172643438,-191.33456198,0.00017662,2]
[394000184,1763172643447,-302.49660437,0.00017662,2]
[394000185,1763172643456,-100658.85610342,0.00018,2]
[394000478,1763172646401,-6366.95392331,0.00018,2]
[394001958,1763172661453,200.0,0.00041551,30]
[394002355,1763172665418,206.4,0.00041551,120]
[394005349,1763172898690,173.18,0.00014295,2]
[394005350,1763172969016,200.0,0.00041552,30]
[394005352,1763173262125,200.0,0.00041548,30]
[394005354,1763173371848,1190.0,0.00041548,120]
[394005355,1763173513205,372.17363645,0.00041548,120]
[394005356,1763173513502,329.46810911,0.00041548,30]
[394005357,1763173528710,279.20362007,0.00041548,30]
[394005358,1763173529818,166.66,0.00016055,2]
[394005360,1763173556779,189.0,0.00041548,120]
[394005361,1763173559645,171.21928543,0.00041548,90]
[394005362,1763173561225,200.0,0.00041548,30]
[394005363,1763173563410,295.46111003,0.00041548,120]
[394005364,1763173573558,482.36535362,0.00041548,120]
[394005365,1763173578745,608.42818376,0.00041548,30]
[394005366,1763173579128,154.89235142,0.00041548,120]
[394005367,1763173581563,3926.25776894,0.000295,120]
[394005370,1763173615445,708.37137878,0.00041548,120]
[394005373,1763173648342,278.48235249,0.00041548,120]
[394005374,1763173652445,332.80689578,0.00041548,120]
[394005379,1763173665546,279.98610796,0.00041548,120]
[394005383,1763173701231,356.70935466,0.00041548,120]
[394005384,1763173703939,1252.48703172,0.00041548,120]
[394005385,1763173705065,652.39151704,0.00041548,30]
[394005386,1763173706002,453.33149402,0.00041548,120]
[394005387,1763173707324,4600.76613666,0.00041548,30]
[394005388,1763173707601,661.32971437,0.00041548,120]
[394005389,1763173708937,249.85141085,0.00041548,120]
[394005391,1763173709184,244.94926127,0.00041548,120]
[394005392,1763173712040,157.87655095,0.00041548,120]
[394005395,1763173717004,217.14316415,0.00041548,60]
[394005396,1763173717413,333.56445532,0.00041548,48]
[394005398,1763173719953,538.76835364,0.00041548,30]
[394005399,1763173720451,559.17506354,0.00041548,30]
[394005400,1763173720782,365.56618622,0.00041548,120]
[394005401,1763173722274,404.55737109,0.00041548,30]
[394005402,1763173722393,492.85781943,0.00041548,60]
[394005403,1763173723273,199.64943433,0.00041548,120]
[394005413,1763173832208,-550.43019999,0.0001627,2]
[394005417,1763173832317,-58.36746001,0.0001627,2]
[394005418,1763173832327,-195.0,0.00016311,2]
[394005419,1763173832336,-195.0,0.00016352,2]
[394005420,1763173832348,-11.23647768,0.00016393,2]
[394005421,1763173832380,-155.42352232,0.00016393,2]
[394005422,1763173832389,-1324.89992318,0.00016438,2]
[394005423,1763173832400,-746.74007682,0.00016438,2]
[394005424,1763173832410,-195.0,0.00016559,2]
[394005425,1763173832420,-166.66,0.00016731,2]
[394005426,1763173832429,-159.31,0.00016921,2]
[394005427,1763173832438,-1200.0,0.00016999,2]
[394005428,1763173832447,-10116.63893284,0.00017,2]
[394005429,1763173832458,-20427.73674093,0.00017,2]
[394005430,1763173832469,-27257.25408873,0.00017,2]
[394005603,1763173838167,-2391.56306589,0.00017,2]
[394005637,1763173838864,200.9,0.00016,2]
[394005779,1763173840260,-60400.44960366,0.00017,2]
[394005781,1763173840271,-166.66,0.00017069,2]
[394005783,1763173840280,-166.66,0.00017407,2]
[394005785,1763173840290,-166.68,0.00017426,2]
[394005787,1763173840299,-168.0,0.00017546,2]
[394005789,1763173840309,-150.0,0.00017578,2]
[394005791,1763173840318,-150.0,0.00017578,2]
[394005794,1763173840327,-150.89,0.00017587,2]
[394005797,1763173840337,-166.66,0.00017745,2]
[394005800,1763173840346,-150.0,0.00017781,2]
[394005803,1763173840358,-222.2113773,0.00017784,2]
[394005806,1763173840368,-188.48979521,0.000178,2]
[394005809,1763173840378,-211.06293479,0.000178,2]
[394005812,1763173840387,-211.06293474,0.00017811,2]
[394005815,1763173840397,-541.82363,0.0001782,2]
[394005818,1763173840407,-211.06293474,0.00017822,2]
[394005821,1763173840418,-211.06293474,0.00017833,2]
[394005824,1763173840426,-211.06293474,0.00017844,2]
[394005827,1763173840435,-188.48979519,0.0001785,2]
[394005830,1763173840444,-211.06293474,0.00017856,2]
[394005833,1763173840454,-200.0,0.00017856,2]
[394005836,1763173840463,-500.0,0.00017863,2]
[394005839,1763173840472,-211.06293474,0.00017867,2]
[394005842,1763173840482,-268.45234818,0.00017873,2]
[394005845,1763173840491,-211.06293474,0.00017878,2]
[394005848,1763173840500,-211.06293474,0.00017889,2]
[394005850,1763173840509,-195.0,0.00017897,2]
[394005853,1763173840519,-844.954,0.00017899,2]
[394005856,1763173840528,-156.76459462,0.00017899,2]
[394005859,1763173840537,-1000.0,0.000179,2]
[394005862,1763173840547,-188.48979519,0.000179,2]
[394005865,1763173840557,-211.06293474,0.000179,2]
[394005867,1763173840566,-246.11855676,0.000179,2]
[394005869,1763173840576,-541.82363,0.0001793,2]
[394005871,1763173840585,-195.0,0.00017942,2]
[394005873,1763173840594,-500.0,0.00017973,2]
[394005876,1763173840603,-500.0,0.00017973,2]
[394005878,1763173840617,-500.0,0.00017973,2]
[394005880,1763173840626,-500.0,0.00017973,2]
[394005882,1763173840635,-500.0,0.00017973,2]
[394005884,1763173840644,-500.0,0.00017973,2]
[394005886,1763173840653,-268.68837719,0.00017999,2]
[394005888,1763173840662,-173.92350718,0.00017999,2]
[394005890,1763173840671,-211.74762306,0.00017999,2]
[394005892,1763173840681,-1149.0,0.00018,2]
[394005894,1763173840690,-3044892.69075345,0.00018,2]
[394005903,1763173840764,-5479.81953532,0.00018,2]
[394005905,1763173840775,-927.39599924,0.00018,2]
[394006196,1763173843469,-620.87859331,0.00018,2]
[394006409,1763173846426,-501.75869559,0.00017899,2]
[394006410,1763173846436,-100.24130441,0.00018,2]
[394006412,1763173860728,200.0,0.00041548,30]
[394006413,1763173976819,1316.84,0.00041548,30]
[394006416,1763174050836,564.71,0.00025606,120]
[394006417,1763174161938,200.0,0.00041548,30]
[394006418,1763174273145,500.0,0.0003,120]
[394006421,1763174289041,1000.0,0.00013699,2]
[394006422,1763174360755,1400.0,0.0003,120]
[394006423,1763174461377,200.0,0.00041547,30]
[394006424,1763174475682,186.0,0.0003,120]
[394006425,1763174516083,152.65,8.419e-05,2]
[394006426,1763174516291,152.65,0.00012628,2]
[394006428,1763174740175,461.23167605,0.00041547,120]
[394006429,1763174761702,200.0,0.00041547,30]
[394006456,1763175031439,-1617.34995375,0.00016573,2]
[394006457,1763175031451,-325.51004625,0.00016573,2]
[394006458,1763175031460,-195.0,0.00016589,2]
[394006459,1763175031470,-195.0,0.00016604,2]
[394006460,1763175031479,-91.4499549,0.00016609,2]
[394006461,1763175031490,-158.5500451,0.00016609,2]
[394006462,1763175031499,-307.58,0.00016635,2]
[394006463,1763175031508,-22.2799549,0.0001667,2]
[394006464,1763175031519,-172.7200451,0.0001667,2]
[394006465,1763175031528,-204.18,0.0001669,2]
[394006466,1763175031538,-1000.0,0.00016738,2]
[394006467,1763175031547,-150.0,0.00016748,2]
[394006468,1763175031556,-200.0,0.00016783,2]
[394006469,1763175031564,-152.65,0.00016837,2]
[394006470,1763175031574,-150.0,0.000169,2]
[394006471,1763175031583,-2159.3603005,0.00016923,2]
[394006472,1763175031592,-1200.0,0.00016943,2]
[394006473,1763175031602,-300.0,0.00016943,2]
[394006474,1763175031613,-15835.34,0.00016944,2]
[394006475,1763175031623,-250.0,0.00017,2]
[394006476,1763175031632,-564.71,0.0001707,2]
[394006477,1763175031641,-300.89,0.00017178,2]
[394006478,1763175031650,-150.0,0.00017278,2]
[394006479,1763175031659,-500.0,0.00017507,2]
[394006480,1763175031669,-416.5,0.000176,2]
[394006481,1763175031678,-150.0,0.000176,2]
[394006482,1763175031687,-150.0,0.000176,2]
[394006483,1763175031697,-150.0,0.000176,2]
[394006484,1763175031706,-150.0,0.000176,2]
[394006485,1763175031715,-300.0,0.000176,2]
[394006486,1763175031724,-211.06293479,0.000177,2]
[394006487,1763175031734,-1305.0,0.000177,2]
[394006488,1763175031744,-188.48979521,0.000177,2]
[394006489,1763175031753,-222.2113773,0.00017712,2]
[394006490,1763175031762,-211.06293474,0.00017722,2]
[394006491,1763175031772,-211.06293474,0.00017744,2]
[394006492,1763175031781,-211.06293474,0.00017767,2]
[394006494,1763175031791,-292.48055508,0.00017773,2]
[394006496,1763175031800,-271.11491252,0.00017773,2]
[394006498,1763175031810,-500.0,0.00017773,2]
[394006500,1763175031820,-171.63434338,0.00017773,2]
[394006502,1763175031829,-211.06293474,0.00017789,2]
[394006504,1763175031838,-844.954,0.00017799,2]
[394006506,1763175031847,-156.76459462,0.00017799,2]
[394006508,1763175031857,-500.0,0.00017799,2]
[394006510,1763175031866,-500.0,0.00017799,2]
[394006512,1763175031876,-500.0,0.00017799,2]
[394006514,1763175031885,-500.0,0.00017799,2]
[394006515,1763175031894,-500.0,0.00017799,2]
[394006516,1763175031905,-18737.0924,0.000178,2]
[394006517,1763175031914,-1000.0,0.000178,2]
[394006518,1763175031924,-416.5,0.000178,2]
[394006519,1763175031933,-188.48979519,0.000178,2]
[394006520,1763175031942,-211.06293474,0.00017811,2]
[394006521,1763175031951,-421.63653,0.0001782,2]
[394006522,1763175031960,-150.0,0.00017833,2]
[394006523,1763175031970,-211.06293474,0.00017833,2]
[394006524,1763175031979,-211.06293474,0.00017856,2]
[394006525,1763175031988,-200.0,0.00017856,2]
[394006526,1763175031997,-211.06293474,0.00017878,2]
[394006527,1763175032007,-211.06293474,0.000179,2]
[394006528,1763175032016,-188.48979519,0.000179,2]
[394006529,1763175032025,-421.63653,0.0001793,2]
[394006530,1763175032034,-500.0,0.00017973,2]
[394006531,1763175032043,-500.0,0.00017973,2]
[394006532,1763175032052,-500.0,0.00017973,2]
[394006533,1763175032062,-500.0,0.00017973,2]
[394006534,1763175032071,-502.75636513,0.00017973,2]
[394006535,1763175032081,-500.0,0.00017973,2]
[394006536,1763175032090,-500.0,0.00017973,2]
[394006537,1763175032099,-6733.76820268,0.00017999,2]
[394006538,1763175032157,-3209.65001136,0.00017999,2]
[394006539,1763175032168,-5513.99033609,0.00017999,2]
[394006540,1763175032186,-281.55588097,0.00017999,2]
[394006541,1763175032196,-2000.0,0.00017999,2]
[394006549,1763175037388,-173.92350718,0.00017998,2]
[394006551,1763175037398,-211.74762306,0.00017998,2]
[394006553,1763175037407,-95.10886976,0.00017998,2]
[394006555,1763175037441,-173.57950743,0.00017998,2]
[394006556,1763175037450,-9885.50578494,0.00017999,2]
[394006564,1763175039432,-2472.23194586,0.00017999,2]
[394006567,1763175039448,-1217.3420917,0.00017999,2]
[394006570,1763175039462,-20075.5297604,0.00017999,2]
[394006572,1763175039478,-84750.3295747,0.00017999,2]
[394006574,1763175039495,-3354.9833641,0.00017999,2]
[394006575,1763175039509,-500.0,0.00017999,2]
[394006576,1763175039519,-500.0,0.00017999,2]
[394006577,1763175039535,-500.0,0.00017999,2]
[394006578,1763175039548,-500.0,0.00017999,2]
[394006579,1763175039562,-422.0,0.00017999,2]
[394006580,1763175039576,-150.0,0.00017999,2]
[394006581,1763175039590,-5478.9579429,0.00017999,2]
[394006582,1763175039604,-500.0,0.00017999,2]
[394006583,1763175039618,-500.0,0.00017999,2]
[394006584,1763175039633,-500.0,0.00017999,2]
[394006585,1763175039646,-503.92761671,0.00017999,2]
[394006586,1763175039659,-150.0,0.00017999,2]
[394006587,1763175039671,-150.0,0.00017999,2]
[394006588,1763175039684,-150.0,0.00017999,2]
[394006589,1763175039702,-425.0,0.00017999,2]
[394006590,1763175039716,-150.0,0.00017999,2]
[394006591,1763175039730,-500.0,0.00017999,2]
[394006592,1763175039741,-500.0,0.00017999,2]
[394006593,1763175039752,-1147.0,0.00018,2]
[394006594,1763175039767,-2933622.54483441,0.00018,2]
[394006595,1763175039795,-1705.45537717,0.00018,2]
[394006596,1763175039809,-364.27060537,0.00018,2]
[394006641,1763175042834,-300.0,0.00017178,2]
[394006642,1763175042847,-303.97311059,0.00018,2]
[394006654,1763175061428,200.0,0.00041548,30]
[394006655,1763175157654,3000.0,0.00041548,120]
[394006656,1763175189282,170.0,1.14e-06,2]
[394006658,1763175358797,33000.77592282,0.00041548,45]
[394006659,1763175360932,200.0,0.00041548,30]
[394006660,1763175597966,500.0,0.00041548,120]
[394006661,1763175597999,500.0,0.00041548,120]
[394006662,1763175598156,495.43484402,0.00041548,120]
[394006663,1763175598230,500.0,0.00041548,120]
[394006664,1763175598260,500.0,0.00041548,120]
[394006665,1763175598457,500.0,0.00041548,120]
[394006666,1763175598492,268.9405853,0.00041548,120]
[394006667,1763175598733,519.64814025,0.00041548,120]
[394006668,1763175600511,500.0,0.00041548,120]
[394006669,1763175600613,500.0,0.00041548,120]
[394006670,1763175600746,500.0,0.00041548,120]
[394006671,1763175600869,500.0,0.00041548,120]
[394006672,1763175600913,500.0,0.00041548,120]
[394006673,1763175600994,500.0,0.00041548,120]
[394006674,1763175601108,500.0,0.00041548,120]
[394006675,1763175601141,500.0,0.00041548,120]
[394006676,1763175601310,475.49892007,0.00041548,120]
[394006677,1763175601412,500.0,0.00041548,120]
[394006678,1763175601748,500.0,0.00041548,120]
[394006679,1763175601789,500.0,0.00041548,120]
[394006680,1763175601873,500.0,0.00041548,120]
[394006681,1763175601911,500.0,0.00041548,120]
[394006682,1763175601944,500.0,0.00041548,120]
[394006683,1763175601977,500.0,0.00041548,120]
[394006684,1763175602017,500.0,0.00041548,120]
[394006685,1763175602049,508.08961102,0.00041548,120]
[394006686,1763175602080,500.0,0.00041548,120]
[394006687,1763175602111,500.0,0.00041548,120]
[394006688,1763175602147,500.0,0.00041548,120]
[394006689,1763175602194,512.82809109,0.00041548,120]
[394006690,1763175602228,500.0,0.00041548,120]
[394006691,1763175602262,250.10347306,0.00041548,120]
[394006692,1763175602296,500.0,0.00041548,120]
[394006693,1763175602358,165.7984671,0.00041548,120]
[394006694,1763175602468,603.77480761,0.00041548,120]
[394006695,1763175602711,500.0,0.00041548,120]
[394006696,1763175602920,500.0,0.00041548,120]
[394006697,1763175602955,500.0,0.00041548,120]
[394006698,1763175603146,500.0,0.00041548,120]
[394006699,1763175603188,500.0,0.00041548,120]
[394006700,1763175603243,500.0,0.00041548,120]
[394006701,1763175603281,403.75410135,0.00041548,120]
[394006702,1763175603384,500.0,0.00041548,120]
[394006703,1763175603420,500.0,0.00041548,120]
[394006704,1763175603455,500.0,0.00041548,120]
[394006705,1763175603628,500.0,0.00041548,120]
[394006706,1763175603670,191.14500361,0.00041548,120]
[394006707,1763175603707,558.44458997,0.00041548,120]
[394006708,1763175603747,500.0,0.00041548,120]
[394006709,1763175603873,500.0,0.00041548,120]
[394006710,1763175603934,500.0,0.00041548,120]
[394006711,1763175604120,500.0,0.00041548,120]
[394006712,1763175604165,500.0,0.00041548,120]
[394006713,1763175604366,500.0,0.00041548,120]
[394006714,1763175604401,421.85157384,0.00041548,120]
[394006715,1763175604436,500.0,0.00041548,120]
[394006716,1763175604605,529.92612032,0.00041548,120]
[394006717,1763175604800,500.0,0.00041548,120]
[394006718,1763175605038,500.0,0.00041548,120]
[394006719,1763175605219,500.0,0.00041548,120]
[394006720,1763175605465,500.0,0.00041548,120]
[394006721,1763175605668,500.0,0.00041548,120]
[394006722,1763175605704,403.62058902,0.00041548,120]
[394006723,1763175605808,500.0,0.00041548,120]
[394006724,1763175605847,500.0,0.00041548,120]
[394006725,1763175605919,500.0,0.00041548,120]
[394006726,1763175606039,497.18688455,0.00041548,120]
[394006727,1763175606074,334.99237964,0.00041548,120]
[394006728,1763175606171,309.98099686,0.00041548,120]
[394006729,1763175606211,172.39768837,0.00041548,120]
[394006730,1763175606317,500.0,0.00041548,120]
[394006731,1763175606397,500.0,0.00041548,120]
[394006732,1763175606559,500.0,0.00041548,120]
[394006733,1763175606671,500.0,0.00041548,120]
[394006734,1763175606798,500.0,0.00041548,120]
[394006735,1763175606883,500.0,0.00041548,120]
[394006736,1763175606955,500.0,0.00041548,120]
[394006737,1763175607005,500.0,0.00041548,120]
[394006738,1763175607048,500.0,0.00041548,120]
[394006739,1763175607165,500.0,0.00041548,120]
[394006740,1763175607222,218.42801149,0.00041548,120]
[394006741,1763175607300,207.75022423,0.00041548,120]
[394006742,1763175607367,500.0,0.00041548,120]
[394006743,1763175607402,500.0,0.00041548,120]
[394006744,1763175607521,491.32198232,0.00041548,120]
[394006745,1763175607746,501.52961288,0.00041548,120]
[394006746,1763175607807,500.0,0.00041548,120]
[394006747,1763175607842,500.0,0.00041548,120]
[394006748,1763175607935,487.07692399,0.00041548,120]
[394006749,1763175607974,500.0,0.00041548,120]
[394006750,1763175608047,504.48772579,0.00041548,120]
[394006751,1763175608129,270.02457686,0.00041548,120]
[394006752,1763175608227,500.0,0.00041548,120]
[394006753,1763175608311,406.94158363,0.00041548,120]
[394006754,1763175608478,500.0,0.00041548,120]
[394006755,1763175608742,500.0,0.00041548,120]
[394006756,1763175609011,500.0,0.00041548,120]
[394006757,1763175609633,500.0,0.00041548,120]
[394006758,1763175609699,500.0,0.00041548,120]
[394006759,1763175609737,500.0,0.00041548,120]
[394006760,1763175609892,500.0,0.00041548,120]
[394006761,1763175609928,500.0,0.00041548,120]
[394006762,1763175609965,336.68694045,0.00041548,120]
[394006763,1763175610005,500.0,0.00041548,120]
[394006764,1763175610065,500.0,0.00041548,120]
[394006765,1763175610101,500.0,0.00041548,120]
[394006766,1763175610141,500.0,0.00041548,120]
[394006767,1763175610226,505.48741348,0.00041548,120]
[394006768,1763175610316,468.83460377,0.00041548,120]
[394006769,1763175610354,1010.42,0.00041548,120]
[394006770,1763175610392,500.0,0.00041548,120]
[394006771,1763175610439,500.0,0.00041548,120]
[394006772,1763175610473,400.0,0.00041548,120]
[394006773,1763175610531,1010.42,0.00041548,120]
[394006774,1763175610569,557.88892075,0.00041548,120]
[394006775,1763175610605,413.20960137,0.00041548,120]
[394006776,1763175610648,2108.32,0.00041548,120]
[394006777,1763175610692,1010.42,0.00041548,120]
[394006778,1763175610899,1010.42,0.00041548,120]
[394006779,1763175610936,2108.32,0.00041548,120]
[394006780,1763175611163,2108.32,0.00041548,120]
[394006781,1763175611224,1010.42,0.00041548,120]
[394006782,1763175611442,2108.32,0.00041548,120]
[394006783,1763175611478,1010.42,0.00041548,120]
[394006784,1763175611696,2108.32,0.00041548,120]
[394006785,1763175611735,1010.42,0.00041548,120]
[394006786,1763175611771,500.0,0.00041548,120]
[394006787,1763175611937,2108.32,0.00041548,120]
[394006788,1763175611972,1010.42,0.00041548,120]
[394006789,1763175612007,500.0,0.00041548,120]
[394006790,1763175612042,646.29757839,0.00041548,120]
[394006791,1763175612075,500.0,0.00041548,120]
[394006792,1763175612108,504.84303019,0.00041548,120]
[394006793,1763175612151,500.0,0.00041548,120]
[394006794,1763175612191,2108.32,0.00041548,120]
[394006795,1763175612232,1010.42,0.00041548,120]
[394006796,1763175612271,500.0,0.00041548,120]
[394006797,1763175612309,500.0,0.00041548,120]
[394006798,1763175612570,400.0,0.00041548,120]
[394006799,1763175612609,500.0,0.00041548,120]
[394006800,1763175612651,2108.32,0.00041548,120]
[394006801,1763175612765,1010.42,0.00041548,120]
[394006802,1763175612814,577.11246774,0.00041548,120]
[394006803,1763175612865,500.0,0.00041548,120]
[394006804,1763175612909,1010.42,0.00041548,120]
[394006805,1763175612955,500.0,0.00041548,120]
[394006806,1763175613001,500.0,0.00041548,120]
[394006807,1763175613068,2108.32,0.00041548,120]
[394006808,1763175613106,1010.42,0.00041548,120]
[394006809,1763175613163,351.00120089,0.00041548,120]
[394006810,1763175613364,2108.32,0.00041548,120]
[394006811,1763175613473,377.0682129,0.00041548,120]
[394006812,1763175613580,500.0,0.00041548,120]
[394006813,1763175613621,2108.32,0.00041548,120]
[394006814,1763175613731,1010.42,0.00041548,120]
[394006815,1763175613807,500.0,0.00041548,120]
[394006816,1763175613848,301.13487052,0.00041548,120]
[394006817,1763175613997,1010.42,0.00041548,120]
[394006818,1763175614093,2108.32,0.00041548,120]
[394006819,1763175614133,500.0,0.00041548,120]
[394006820,1763175614245,1010.42,0.00041548,120]
[394006821,1763175614300,500.0,0.00041548,120]
[394006822,1763175614341,2108.32,0.00041548,120]
[394006823,1763175614479,1010.42,0.00041548,120]
[394006824,1763175614533,500.0,0.00041548,120]
[394006825,1763175614577,500.0,0.00041548,120]
[394006826,1763175614628,2108.32,0.00041548,120]
[394006827,1763175614677,500.0,0.00041548,120]
[394006828,1763175614749,1010.42,0.00041548,120]
[394006829,1763175614790,493.33707637,0.00041548,120]
[394006830,1763175614832,500.0,0.00041548,120]
[394006831,1763175614875,2108.32,0.00041548,120]
[394006832,1763175614947,500.0,0.00041548,120]
[394006833,1763175615071,500.0,0.00041548,120]
[394006834,1763175615115,2108.32,0.00041548,120]
[394006835,1763175615179,500.0,0.00041548,120]
[394006836,1763175615234,500.0,0.00041548,120]
[394006837,1763175615316,500.0,0.00041548,120]
[394006838,1763175615361,2108.32,0.00041548,120]
[394006839,1763175615401,1010.42,0.00041548,120]
[394006840,1763175615468,500.0,0.00041548,120]
[394006841,1763175615533,500.0,0.00041548,120]
[394006842,1763175615583,406.31984167,0.00041548,120]
[394006843,1763175615623,500.0,0.00041548,120]
[394006844,1763175615675,2108.32,0.00041548,120]
[394006845,1763175615718,1010.42,0.00041548,120]
[394006846,1763175615761,512.36059163,0.00041548,120]
[394006847,1763175615803,500.0,0.00041548,120]
[394006848,1763175615892,500.0,0.00041548,120]
[394006849,1763175615937,500.0,0.00041548,120]
[394006850,1763175615978,2108.32,0.00041548,120]
[394006851,1763175616019,500.0,0.00041548,120]
[394006852,1763175616061,354.83202945,0.00041548,120]
[394006853,1763175616105,405.64963337,0.00041548,120]
[394006854,1763175616145,1010.42,0.00041548,120]
[394006855,1763175616194,500.0,0.00041548,120]
[394006856,1763175616233,314.21852918,0.00041548,120]
[394006857,1763175616273,2108.32,0.00041548,120]
[394006858,1763175616311,500.0,0.00041548,120]
[394006859,1763175616354,1010.42,0.00041548,120]
[394006860,1763175616393,500.0,0.00041548,120]
[394006861,1763175616434,500.0,0.00041548,120]
[394006862,1763175616473,529.16402753,0.00041548,120]
[394006863,1763175616523,2108.32,0.00041548,120]
[394006864,1763175616571,500.0,0.00041548,120]
[394006865,1763175616617,1010.42,0.00041548,120]
[394006866,1763175616663,500.0,0.00041548,120]
[394006867,1763175616721,500.0,0.00041548,120]
[394006868,1763175616779,2108.32,0.00041548,120]
[394006869,1763175616832,500.0,0.00041548,120]
[394006870,1763175616876,1010.42,0.00041548,120]
[394006871,1763175616920,557.58660963,0.00041548,120]
[394006872,1763175616963,500.0,0.00041548,120]
[394006873,1763175617007,500.0,0.00041548,120]
[394006874,1763175617226,2108.32,0.00041548,120]
[394006875,1763175617272,500.0,0.00041548,120]
[394006876,1763175617320,524.12097194,0.00041548,120]
[394006877,1763175617360,1010.43163624,0.00041548,120]
[394006878,1763175617407,2108.40721006,0.00041548,120]
[394006879,1763175617447,417.65255001,0.00041548,120]
[394006880,1763175617491,252.52806801,0.00041548,120]
[394006881,1763175618074,500.0,0.00041548,120]
[394006882,1763175618355,516.15097575,0.00041548,120]
[394006883,1763175618845,984.61,0.00041548,120]
[394006884,1763175618976,500.0,0.00041548,120]
[394006885,1763175619029,500.0,0.00041548,120]
[394006886,1763175619071,249.28026107,0.00041548,120]
[394006887,1763175619114,500.0,0.00041548,120]
[394006888,1763175619164,984.61,0.00041548,120]
[394006889,1763175619215,500.0,0.00041548,120]
[394006890,1763175619270,500.0,0.00041548,120]
[394006891,1763175619344,500.0,0.00041548,120]
[394006892,1763175619451,500.0,0.00041548,120]
[394006893,1763175619498,984.61,0.00041548,120]
[394006894,1763175619547,500.0,0.00041548,120]
[394006895,1763175619598,500.0,0.00041548,120]
[394006896,1763175620024,500.0,0.00041548,120]
[394006897,1763175620069,984.61,0.00041548,120]
[394006898,1763175620117,500.0,0.00041548,120]